fUST/lending_fUST_20240102
["ID","MTS","AMOUNT","RATE_DAILY","PERIOD"]
[309825178,1704181832748,-250.0,0.00027975,2]
[309825179,1704181832758,-781.72443064,0.00028,2]
[309825180,1704181832768,-620.08062675,0.00028059,2]
[309825181,1704181832778,-181.376688,0.00028103,2]
[309825182,1704181832787,-1840.25338,0.00028719,2]
[309825183,1704181832797,-869.90801586,0.00029171,2]
[309825184,1704181832810,-9308.18475027,0.00029171,2]
[309825185,1704181832819,-178.258014,0.00029242,2]
[309825186,1704181832829,-155.04529506,0.00029461,2]
[309825187,1704181832839,-620.00403134,0.00029462,2]
[309825188,1704181832849,-4379.10664299,0.00029579,2]
[309825189,1704181832858,-24900.0,0.0002958,2]
[309825190,1704181832868,-1840.25338,0.00029743,2]
[309825191,1704181832878,-181.376688,0.0003007,2]
[309825192,1704181832887,-200.0,0.00030542,15]
[309825193,1704181832896,-1840.25338,0.00030768,2]
[309825194,1704181832906,-1840.25338,0.00031793,2]
[309825195,1704181832915,-280.0,0.00033596,15]
[309825196,1704181832925,-1000.0,0.00034,7]
[309825197,1704181832934,-154.93802479,0.00035,4]
[309825198,1704181832943,-590.09569667,0.00035,2]
[309825199,1704181832952,-444.0,0.00035452,2]
[309825200,1704181832961,-1678.696654,0.00035616,120]
[309825201,1704181832970,-309.79956014,0.00036468,2]
[309825202,1704181832979,-363.0,0.00036955,15]
[309825203,1704181832989,-321.54920716,0.00036983,2]
[309825204,1704181832998,-155.45835914,0.00036984,4]
[309825205,1704181833007,-154.92253873,0.00037,4]
[309825206,1704181833016,-494.0,0.0003874,2]
[309825207,1704181833026,-980.72138753,0.00038995,2]
[309825208,1704181833035,-150.93962415,0.00039041,2]
[309825209,1704181833044,-250.39072371,0.00039041,2]
[309825210,1704181833053,-301.8792483,0.00039698,4]
[309825211,1704181833062,-155.40205275,0.0003999,2]
[309825212,1704181833071,-155.0,0.00039998,2]
[309825213,1704181833080,-160.03156552,0.0004,4]
[309825214,1704181833089,-238.0,0.0004,2]
[309825215,1704181833099,-160.0,0.0004,2]
[309825216,1704181833107,-221.42708662,0.00040232,2]
[309825217,1704181833117,-603.7584966,0.00040365,7]
[309825218,1704181833126,-1500.0,0.000405,3]
[309825219,1704181833135,-155.58269885,0.00040687,2]
[309825220,1704181833153,-155.28182379,0.00040888,4]
[309825221,1704181833165,-345.64270841,0.00040893,2]
[309825222,1704181833286,-345.64270841,0.00040919,2]
[309825223,1704181833296,-345.64270841,0.00040946,2]
[309825224,1704181833307,-174.893691,0.0004096,2]
[309825225,1704181833318,-345.64270841,0.00040972,2]
[309825226,1704181833328,-3202.57,0.00040988,3]
[309825227,1704181833340,-345.64270841,0.00040998,2]
[309825228,1704181833351,-3056.12615237,0.00040998,2]
[309825229,1704181833360,-141997.31102937,0.00040998,2]
[309825230,1704181833371,-938.07845562,0.00040999,4]
[309825231,1704181833379,-1277.642242,0.00041,4]
[309825232,1704181833389,-13643.06921271,0.00041,5]
[309825233,1704181833398,-504.3779549,0.00041,2]
[309825234,1704181833407,-166.92714914,0.00041043,4]
[309825235,1704181833418,-150.0,0.00041065,7]
[309825236,1704181833427,-150.0,0.00041065,60]
[309825237,1704181833436,-150.0,0.00041075,7]
[309825238,1704181833446,-162.0,0.00041075,7]
[309825239,1704181833456,-150.0,0.00041075,60]
[309825240,1704181833466,-150.0,0.00041085,7]
[309825241,1704181833475,-150.0,0.00041085,7]
[309825242,1704181833484,-150.0,0.00041085,60]
[309825243,1704181833495,-180.60268682,0.00041093,2]
[309825244,1704181833505,-441.26062104,0.00041093,2]
[309825245,1704181833515,-2178.65217296,0.00041093,2]
[309825246,1704181833525,-230.6472574,0.00041093,4]
[309825247,1704181833535,-4932.2093368,0.00041093,7]
[309825248,1704181833545,-2591.61712256,0.00041093,4]
[309825249,1704181833555,-851.62044368,0.00041094,4]
[309825250,1704181833567,-500.0,0.00041094,2]
[309825251,1704181833577,-500.0,0.00041094,2]
[309825252,1704181833587,-577.75601523,0.00041094,2]
[309825253,1704181833596,-1500.05633405,0.00041094,2]
[309825254,1704181833605,-506.33757295,0.00041095,7]
[309825255,1704181833615,-537.20078607,0.00041095,7]
[309825256,1704181833624,-532.33450474,0.00041095,7]
[309825257,1704181833634,-502.28522468,0.00041095,7]
[309825258,1704181833643,-500.0,0.00041095,7]
[309825259,1704181833653,-500.0,0.00041095,7]
[309825260,1704181833662,-500.0,0.00041095,7]
[309825261,1704181833672,-501.22713174,0.00041095,7]
[309825262,1704181833681,-501.29674734,0.00041095,7]
[309825263,1704181833690,-504.08580467,0.00041095,7]
[309825264,1704181833699,-500.0,0.00041095,7]
[309825265,1704181833708,-861.08,0.00041095,7]
[309825266,1704181833717,-501.8983955,0.00041095,7]
[309825267,1704181833727,-675.7,0.00041095,7]
[309825268,1704181833736,-500.0,0.00041095,7]
[309825269,1704181833745,-502.4742012,0.00041095,7]
[309825270,1704181833758,-502.20811042,0.00041095,7]
[309825271,1704181833767,-350.46453029,0.00041095,7]
[309825272,1704181833777,-205.39912874,0.00041095,7]
[309825273,1704181833786,-502.60353928,0.00041095,7]
[309825274,1704181833795,-517.58500742,0.00041095,7]
[309825275,1704181833805,-500.0,0.00041095,7]
[309825276,1704181833815,-510.12991902,0.00041095,7]
[309825277,1704181833825,-150.0,0.00041095,7]
[309825278,1704181833835,-150.0,0.00041095,7]
[309825279,1704181833844,-509.90108145,0.00041095,7]
[309825280,1704181833853,-514.24530831,0.00041095,7]
[309825281,1704181833863,-500.0,0.00041095,7]
[309825282,1704181833872,-503.16301792,0.00041095,7]
[309825283,1704181833881,-504.31060641,0.00041095,2]
[309825284,1704181833890,-500.0,0.00041095,7]
[309825285,1704181833899,-543.27081281,0.00041095,7]
[309825286,1704181833909,-501.65209593,0.00041095,7]
[309825287,1704181833919,-500.0,0.00041095,7]
[309825288,1704181833929,-500.0,0.00041095,7]
[309825289,1704181833938,-390.34631472,0.00041095,7]
[309825290,1704181833947,-500.00000001,0.00041095,7]
[309825291,1704181833957,-503.96848115,0.00041095,7]
[309825292,1704181833966,-503.02228674,0.00041095,7]
[309825293,1704181833976,-503.37188405,0.00041095,7]
[309825294,1704181833985,-506.45164416,0.00041095,7]
[309825295,1704181833994,-500.0,0.00041095,7]
[309825296,1704181834003,-1616.45,0.00041095,7]
[309825297,1704181834012,-503.19921092,0.00041095,7]
[309825298,1704181834022,-500.0,0.00041095,7]
[309825299,1704181834031,-292.49371244,0.00041095,7]
[309825300,1704181834041,-500.0,0.00041095,7]
[309825301,1704181834051,-500.0,0.00041095,7]
[309825302,1704181834059,-725.82,0.00041095,7]
[309825303,1704181834069,-500.0,0.00041095,7]
[309825304,1704181834078,-500.0,0.00041095,7]
[309825305,1704181834086,-500.0,0.00041095,7]
[309825306,1704181834101,-500.0,0.00041095,7]
[309825307,1704181834115,-500.0,0.00041095,7]
[309825308,1704181834128,-500.0,0.00041095,7]
[309825309,1704181834140,-500.0,0.00041095,7]
[309825310,1704181834152,-500.0,0.00041095,7]
[309825311,1704181834162,-500.0,0.00041095,2]
[309825312,1704181834174,-500.0,0.00041095,7]
[309825313,1704181834187,-502.38654514,0.00041095,7]
[309825314,1704181834199,-1129.21,0.00041095,7]
[309825315,1704181834211,-529.08525252,0.00041095,7]
[309825316,1704181834225,-223.23790234,0.00041095,7]
[309825317,1704181834237,-509.11119532,0.00041095,7]
[309825318,1704181834249,-500.0,0.00041095,7]
[309825319,1704181834260,-500.0,0.00041095,7]
[309825320,1704181834270,-507.10807147,0.00041095,7]
[309825321,1704181834283,-500.0,0.00041095,7]
[309825322,1704181834295,-500.92608889,0.00041095,7]
[309825323,1704181834306,-511.63726716,0.00041095,7]
[309825324,1704181834317,-456.09866089,0.00041095,7]
[309825325,1704181834329,-500.0,0.00041095,7]
[309825326,1704181834340,-505.24422187,0.00041095,7]
[309825327,1704181834352,-500.0,0.00041095,7]
[309825328,1704181834365,-500.0,0.00041095,7]
[309825329,1704181834376,-507.12318767,0.00041095,7]
[309825330,1704181834386,-508.12761668,0.00041095,7]
[309825331,1704181834396,-507.0645809,0.00041095,7]
[309825332,1704181834410,-510.42695868,0.00041095,7]
[309825333,1704181834422,-500.0,0.00041095,7]
[309825334,1704181834434,-500.0,0.00041095,7]
[309825335,1704181834447,-500.0,0.00041095,7]
[309825336,1704181834458,-503.5416314,0.00041095,7]
[309825337,1704181834470,-2329.24,0.00041095,7]
[309825338,1704181834482,-500.0,0.00041095,7]
[309825339,1704181834495,-500.0,0.00041095,7]
[309825340,1704181834507,-203.45177522,0.00041095,7]
[309825341,1704181834519,-520.24465914,0.00041095,7]
[309825342,1704181834531,-500.0,0.00041095,7]
[309825343,1704181834544,-500.0,0.00041095,7]
[309825344,1704181834556,-535.07169261,0.00041095,7]
[309825345,1704181834568,-613.75424218,0.00041095,7]
[309825346,1704181834580,-500.0,0.00041095,7]
[309825347,1704181834590,-500.0,0.00041095,7]
[309825348,1704181834600,-502.16963353,0.00041095,7]
[309825349,1704181834611,-648.15828433,0.00041095,7]
[309825350,1704181834622,-526.42836703,0.00041095,7]
[309825351,1704181834635,-500.0,0.00041095,7]
[309825352,1704181834646,-500.0,0.00041095,7]
[309825353,1704181834658,-500.0,0.00041095,7]
[309825354,1704181834669,-500.0,0.00041095,7]
[309825355,1704181834681,-500.0,0.00041095,7]
[309825356,1704181834693,-3544.2,0.00041095,7]
[309825357,1704181834703,-500.0,0.00041095,7]
[309825358,1704181834713,-503.76871091,0.00041095,7]
[309825359,1704181834723,-500.0,0.00041095,7]
[309825360,1704181834734,-500.0,0.00041095,7]
[309825361,1704181834745,-500.0,0.00041095,7]
[309825362,1704181834756,-505.83205928,0.00041095,7]
[309825363,1704181834767,-500.0,0.00041095,7]
[309825364,1704181834777,-500.0,0.00041095,7]
[309825365,1704181834788,-500.0,0.00041095,7]
[309825366,1704181834799,-500.0,0.00041095,7]
[309825367,1704181834811,-503.37375583,0.00041095,7]
[309825368,1704181834821,-498.12549123,0.00041095,7]
[309825369,1704181834832,-500.0,0.00041095,7]
[309825370,1704181834843,-500.0,0.00041095,7]
[309825371,1704181834854,-500.0,0.00041095,7]
[309825372,1704181834865,-500.0,0.00041095,7]
[309825373,1704181834876,-501.60078934,0.00041095,7]
[309825374,1704181834887,-501.44197547,0.00041095,7]
[309825375,1704181834897,-506.44369768,0.00041095,7]
[309825376,1704181834909,-500.0,0.00041095,7]
[309825377,1704181834919,-946.45,0.00041095,7]
[309825378,1704181834930,-451.29735976,0.00041095,7]
[309825379,1704181834940,-172.41593127,0.00041095,7]
[309825380,1704181834951,-500.0,0.00041095,7]
[309825381,1704181834962,-500.0,0.00041095,7]
[309825382,1704181834973,-500.0,0.00041095,7]
[309825383,1704181834983,-500.0,0.00041095,7]
[309825384,1704181834994,-632.21,0.00041095,7]
[309825385,1704181835004,-500.0,0.00041095,7]
[309825386,1704181835015,-502.86564975,0.00041095,7]
[309825387,1704181835025,-361.048888,0.00041095,7]
[309825388,1704181835036,-500.0,0.00041095,7]
[309825389,1704181835047,-500.0,0.00041095,7]
[309825390,1704181835152,-500.0,0.00041095,7]
[309825391,1704181835162,-500.0,0.00041095,7]
[309825392,1704181835171,-500.0,0.00041095,7]
[309825393,1704181835181,-500.0,0.00041095,7]
[309825394,1704181835190,-500.0,0.00041095,7]
[309825395,1704181835200,-521.90692322,0.00041095,7]
[309825396,1704181835208,-500.0,0.00041095,7]
[309825397,1704181835218,-526.02998083,0.00041095,7]
[309825398,1704181835227,-508.6842317,0.00041095,7]
[309825399,1704181835236,-502.96994907,0.00041095,7]
[309825400,1704181835245,-506.05113733,0.00041095,7]
[309825401,1704181835254,-500.0,0.00041095,7]
[309825402,1704181835263,-500.0,0.00041095,7]
[309825403,1704181835272,-557.49671277,0.00041095,7]
[309825404,1704181835282,-506.26932897,0.00041095,7]
[309825405,1704181835291,-505.38129326,0.00041095,7]
[309825406,1704181835301,-501.13066623,0.00041095,7]
[309825407,1704181835310,-470.52088449,0.00041095,7]
[309825408,1704181835320,-511.91142472,0.00041095,7]
[309825409,1704181835329,-512.68359434,0.00041095,7]
[309825410,1704181835339,-500.0,0.00041095,7]
[309825411,1704181835348,-500.0,0.00041095,7]
[309825412,1704181835357,-500.0,0.00041095,7]
[309825413,1704181835368,-3267.84,0.00041095,7]
[309825414,1704181835378,-500.0,0.00041095,7]
[309825415,1704181835387,-500.0,0.00041095,7]
[309825416,1704181835397,-528.65706996,0.00041095,7]
[309825417,1704181835407,-519.07740423,0.00041095,7]
[309825418,1704181835416,-608.50439008,0.00041095,7]
[309825419,1704181835425,-500.0,0.00041095,7]
[309825420,1704181835434,-500.0,0.00041095,7]
[309825421,1704181835443,-502.85488882,0.00041095,7]
[309825422,1704181835452,-525.49511778,0.00041095,7]
[309825423,1704181835461,-500.0,0.00041095,7]
[309825424,1704181835470,-500.0,0.00041095,7]
[309825425,1704181835479,-500.0,0.00041095,7]
[309825426,1704181835489,-500.0,0.00041095,7]
[309825427,1704181835498,-500.0,0.00041095,7]
[309825428,1704181835507,-500.0,0.00041095,7]
[309825429,1704181835517,-500.0,0.00041095,7]
[309825430,1704181835526,-500.0,0.00041095,7]
[309825431,1704181835535,-467.79304641,0.00041095,7]
[309825432,1704181835545,-513.43077945,0.00041095,7]
[309825433,1704181835554,-24236.61,0.00041095,3]
[309825434,1704181835564,-232.76638391,0.00041095,7]
[309825435,1704181835573,-529.74128568,0.00041095,7]
[309825436,1704181835584,-500.0,0.00041095,7]
[309825437,1704181835594,-500.0,0.00041095,7]
[309825438,1704181835603,-500.0,0.00041095,7]
[309825439,1704181835613,-288.64103576,0.00041095,7]
[309825440,1704181835622,-500.0,0.00041095,7]
[309825441,1704181835634,-500.0,0.00041095,7]
[309825442,1704181835643,-500.0,0.00041095,7]
[309825443,1704181835652,-500.0,0.00041095,4]
[309825444,1704181835661,-524.87803194,0.00041095,7]
[309825445,1704181835671,-501.7322067,0.00041095,7]
[309825446,1704181835680,-500.0,0.00041095,7]
[309825447,1704181835689,-500.0,0.00041095,7]
[309825448,1704181835699,-504.12430121,0.00041095,7]
[309825449,1704181835708,-500.0,0.00041095,7]
[309825450,1704181835718,-500.0,0.00041095,7]
[309825451,1704181835728,-157.5696183,0.00041095,7]
[309825452,1704181835737,-500.0,0.00041095,7]
[309825453,1704181835748,-510.1881942,0.00041095,7]
[309825454,1704181835760,-500.0,0.00041095,7]
[309825455,1704181835770,-500.0,0.00041095,7]
[309825456,1704181835779,-500.0,0.00041095,7]
[309825457,1704181835789,-500.0,0.00041095,7]
[309825458,1704181835800,-502.74262644,0.00041095,7]
[309825459,1704181835809,-3406.83,0.00041095,7]
[309825460,1704181835819,-507.19171147,0.00041095,7]
[309825461,1704181835828,-504.43813749,0.00041095,7]
[309825462,1704181835838,-600.42,0.00041095,7]
[309825463,1704181835848,-500.0,0.00041095,7]
[309825464,1704181835857,-500.0,0.00041095,7]
[309825465,1704181835868,-500.0,0.00041095,7]
[309825466,1704181835878,-573.44590777,0.00041095,7]
[309825467,1704181835887,-500.0,0.00041095,7]
[309825468,1704181835896,-650.72,0.00041095,7]
[309825469,1704181835905,-500.0,0.00041095,7]
[309825470,1704181835914,-500.0,0.00041095,7]
[309825471,1704181835925,-500.0,0.00041095,7]
[309825472,1704181835935,-500.0,0.00041095,7]
[309825473,1704181835944,-188.8275591,0.00041095,7]
[309825474,1704181835953,-501.09918529,0.00041095,7]
[309825475,1704181835963,-500.0,0.00041095,7]
[309825476,1704181835972,-500.0,0.00041095,7]
[309825477,1704181835981,-4666.64,0.00041095,7]
[309825478,1704181835990,-500.0,0.00041095,7]
[309825479,1704181835999,-557.01,0.00041095,7]
[309825480,1704181836009,-3590.67,0.00041095,7]
[309825481,1704181836018,-500.0,0.00041095,7]
[309825482,1704181836027,-626.64642937,0.00041095,7]
[309825483,1704181836037,-500.0,0.00041095,7]
[309825484,1704181836046,-500.0,0.00041095,7]
[309825485,1704181836055,-517.55320889,0.00041095,7]
[309825486,1704181836064,-505.81306495,0.00041095,7]
[309825487,1704181836074,-500.0,0.00041095,7]
[309825488,1704181836083,-500.0,0.00041095,7]
[309825489,1704181836093,-501.09422227,0.00041095,7]
[309825490,1704181836102,-4230.48,0.00041095,7]
[309825491,1704181836112,-500.0,0.00041095,7]
[309825492,1704181836121,-500.0,0.00041095,7]
[309825493,1704181836131,-500.0,0.00041095,7]
[309825494,1704181836140,-500.0,0.00041095,7]
[309825495,1704181836149,-500.0,0.00041095,7]
[309825496,1704181836159,-500.0,0.00041095,7]
[309825497,1704181836168,-500.0,0.00041095,7]
[309825498,1704181836178,-500.0,0.00041095,7]
[309825499,1704181836188,-500.0,0.00041095,7]
[309825500,1704181836197,-500.0,0.00041095,7]
[309825501,1704181836206,-500.0,0.00041095,7]
[309825502,1704181836215,-500.0,0.00041095,7]
[309825503,1704181836225,-500.0,0.00041095,7]
[309825504,1704181836235,-500.0,0.00041095,7]
[309825505,1704181836245,-500.0,0.00041095,7]
[309825506,1704181836254,-508.2479361,0.00041095,7]
[309825507,1704181836264,-500.0,0.00041095,7]
[309825508,1704181836273,-500.0,0.00041095,7]
[309825509,1704181836283,-500.0,0.00041095,7]
[309825510,1704181836292,-500.0,0.00041095,7]
[309825511,1704181836301,-2028.58,0.00041095,7]
[309825512,1704181836311,-500.0,0.00041095,7]
[309825513,1704181836320,-500.0,0.00041095,7]
[309825514,1704181836330,-604.99735244,0.00041095,7]
[309825515,1704181836339,-991.22,0.00041095,7]
[309825516,1704181836349,-500.0,0.00041095,7]
[309825517,1704181836358,-500.0,0.00041095,7]
[309825518,1704181836368,-500.0,0.00041095,7]
[309825519,1704181836378,-500.0,0.00041095,7]
[309825520,1704181836387,-500.0,0.00041095,7]
[309825521,1704181836396,-304.64690222,0.00041095,7]
[309825522,1704181836406,-500.0,0.00041095,7]
[309825523,1704181836415,-500.0,0.00041095,7]
[309825524,1704181836424,-500.0,0.00041095,7]
[309825525,1704181836433,-500.0,0.00041095,7]
[309825526,1704181836442,-504.38619575,0.00041095,7]
[309825527,1704181836452,-285.90460365,0.00041097,2]
[309825528,1704181836461,-707.47983777,0.00041097,4]
[309825529,1704181836470,-467.82180254,0.00041097,7]
[309825530,1704181836480,-220.80047958,0.00041098,3]
[309825531,1704181836497,-2926.0490301,0.00041098,4]
[309825532,1704181836513,-274.96302419,0.00041098,4]
[309825533,1704181836523,-1425.65711515,0.00041098,5]
[309825534,1704181836533,-305.17872531,0.00041098,2]
[309825535,1704181836543,-1803.78571926,0.00041098,4]
[309825536,1704181836553,-155.15701059,0.00041098,2]
[309825537,1704181836564,-72189.79224349,0.00041098,60]
[309825538,1704181836573,-322.66510448,0.00041098,3]
[309825539,1704181836584,-309.6356628,0.00041166,2]
[309825540,1704181836617,-306.0,0.00041166,2]
[309825541,1704181836628,-199.0,0.00041221,60]
[309825542,1704181836637,-500.0,0.0004123,7]
[309825543,1704181836647,-500.0,0.0004123,7]
[309825544,1704181836656,-500.0,0.00041231,7]
[309825545,1704181836667,-500.0,0.00041231,7]
[309825546,1704181836678,-183.31701142,0.00041231,7]
[309825547,1704181836688,-580.51227623,0.00041231,4]
[309825548,1704181836698,-500.0,0.00041231,4]
[309825549,1704181836708,-500.0,0.00041231,4]
[309825550,1704181836719,-232.34121036,0.00041231,4]
[309825551,1704181836729,-459.64245109,0.00041231,4]
[309825552,1704181836739,-500.0,0.00041231,4]
[309825553,1704181836749,-500.0,0.00041231,4]
[309825554,1704181836760,-500.0,0.00041231,4]
[309825555,1704181836771,-525.80600405,0.00041231,4]
[309825556,1704181836780,-159.47634199,0.00041231,4]
[309825557,1704181836791,-500.0,0.00041231,4]
[309825558,1704181836801,-500.0,0.00041231,4]
[309825559,1704181836812,-244.04545627,0.00041231,4]
[309825560,1704181836822,-500.0,0.00041231,4]
[309825561,1704181836831,-500.0,0.00041231,4]
[309825562,1704181836841,-500.0,0.00041231,4]
[309825563,1704181836853,-444.04545627,0.00041231,4]
[309825564,1704181836863,-500.0,0.00041231,4]
[309825565,1704181836880,-500.0,0.00041231,4]
[309825566,1704181836891,-288.70900608,0.00041231,4]
[309825567,1704181836901,-500.0,0.00041231,4]
[309825568,1704181836910,-232.20491048,0.00041231,4]
[309825569,1704181836919,-500.0,0.00041231,4]
[309825570,1704181836928,-499.99999999,0.00041231,4]
[309825571,1704181836939,-500.0,0.00041231,7]
[309825572,1704181836948,-500.0,0.00041232,7]
[309825573,1704181836957,-500.0,0.00041232,7]
[309825574,1704181836967,-861.08,0.00041232,7]
[309825575,1704181836977,-675.7,0.00041232,7]
[309825576,1704181836987,-500.0,0.00041232,7]
[309825577,1704181836996,-500.0,0.00041232,7]
[309825578,1704181837005,-150.0,0.00041232,7]
[309825579,1704181837015,-500.0,0.00041232,7]
[309825580,1704181837025,-584.98026133,0.00041232,7]
[309825581,1704181837035,-408.04625137,0.00041232,7]
[309825582,1704181837045,-500.0,0.00041232,7]
[309825583,1704181837056,-500.0,0.00041232,7]
[309825584,1704181837067,-1616.45,0.00041232,7]
[309825585,1704181837077,-500.0,0.00041232,7]
[309825586,1704181837087,-504.58107349,0.00041232,7]
[309825587,1704181837097,-500.0,0.00041232,7]
[309825588,1704181837108,-725.82,0.00041232,7]
[309825589,1704181837120,-524.31118888,0.00041232,7]
[309825590,1704181837130,-500.0,0.00041232,7]
[309825591,1704181837140,-510.82192723,0.00041232,7]
[309825592,1704181837151,-500.0,0.00041232,7]
[309825593,1704181837249,-515.85994366,0.00041232,7]
[309825594,1704181837260,-578.5486869,0.00041232,7]
[309825595,1704181837270,-620.87649819,0.00041232,7]
[309825596,1704181837280,-500.0,0.00041232,2]
[309825597,1704181837290,-504.04745941,0.00041232,7]
[309825598,1704181837301,-1129.21,0.00041232,7]
[309825599,1704181837311,-500.0,0.00041232,7]
[309825600,1704181837321,-500.0,0.00041232,7]
[309825601,1704181837332,-500.0,0.00041232,7]
[309825602,1704181837343,-519.2390185,0.00041232,7]
[309825603,1704181837353,-506.94734692,0.00041232,7]
[309825604,1704181837363,-516.07351958,0.00041232,7]
[309825605,1704181837374,-514.71288415,0.00041232,7]
[309825606,1704181837384,-519.45813524,0.00041232,7]
[309825607,1704181837394,-265.51121293,0.00041232,7]
[309825608,1704181837404,-2329.24,0.00041232,7]
[309825609,1704181837413,-500.0,0.00041232,7]
[309825610,1704181837422,-502.94656177,0.00041232,7]
[309825611,1704181837431,-500.0,0.00041232,7]
[309825612,1704181837440,-500.0,0.00041232,7]
[309825613,1704181837449,-425.57604119,0.00041232,7]
[309825614,1704181837459,-500.0,0.00041232,7]
[309825615,1704181837468,-500.0,0.00041232,7]
[309825616,1704181837477,-506.24436151,0.00041232,7]
[309825617,1704181837486,-500.0,0.00041232,7]
[309825618,1704181837495,-621.66743172,0.00041232,7]
[309825619,1704181837504,-3544.2,0.00041232,7]
[309825620,1704181837513,-508.44288091,0.00041232,7]
[309825621,1704181837522,-505.17781555,0.00041232,7]
[309825622,1704181837531,-521.11554391,0.00041232,7]
[309825623,1704181837541,-202.56545927,0.00041232,7]
[309825624,1704181837550,-500.0,0.00041232,7]
[309825625,1704181837559,-509.34844658,0.00041232,7]
[309825626,1704181837569,-500.0,0.00041232,7]
[309825627,1704181837578,-511.57761272,0.00041232,7]
[309825628,1704181837587,-511.13209528,0.00041232,7]
[309825629,1704181837599,-500.0,0.00041232,7]
[309825630,1704181837609,-500.0,0.00041232,7]
[309825631,1704181837618,-311.609951,0.00041232,7]
[309825632,1704181837628,-583.9633887,0.00041232,7]
[309825633,1704181837638,-946.45,0.00041232,7]
[309825634,1704181837648,-500.0,0.00041232,7]
[309825635,1704181837657,-500.0,0.00041232,7]
[309825636,1704181837666,-500.0,0.00041232,7]
[309825637,1704181837676,-500.0,0.00041232,7]
[309825638,1704181837685,-632.21,0.00041232,7]
[309825639,1704181837694,-500.0,0.00041232,7]
[309825640,1704181837704,-513.19198858,0.00041232,7]
[309825641,1704181837714,-533.7215135,0.00041232,7]
[309825642,1704181837723,-503.46402141,0.00041232,7]
[309825643,1704181837733,-500.0,0.00041232,7]
[309825644,1704181837742,-500.0,0.00041232,7]
[309825645,1704181837752,-506.6352725,0.00041232,7]
[309825646,1704181837764,-3267.84,0.00041232,7]
[309825647,1704181837774,-508.90637175,0.00041232,7]
[309825648,1704181837784,-500.0,0.00041232,7]
[309825649,1704181837795,-314.64362143,0.00041232,7]
[309825650,1704181837805,-500.0,0.00041232,7]
[309825651,1704181837815,-500.0,0.00041232,7]
[309825652,1704181837825,-353.40449712,0.00041232,7]
[309825653,1704181837836,-503.78413883,0.00041232,7]
[309825654,1704181837846,-500.0,0.00041232,7]
[309825655,1704181837855,-485.42229838,0.00041232,7]
[309825656,1704181837866,-500.0,0.00041232,7]
[309825657,1704181837876,-502.91288221,0.00041232,7]
[309825658,1704181837886,-500.0,0.00041232,7]
[309825659,1704181837897,-24236.61,0.00041232,3]
[309825660,1704181837906,-515.67864189,0.00041232,7]
[309825661,1704181837915,-500.0,0.00041232,7]
[309825662,1704181837927,-504.74789277,0.00041232,7]
[309825663,1704181837936,-500.0,0.00041232,7]
[309825664,1704181837946,-500.0,0.00041232,7]
[309825665,1704181837958,-500.0,0.00041232,7]
[309825666,1704181837968,-500.0,0.00041232,4]
[309825667,1704181837978,-500.0,0.00041232,7]
[309825668,1704181837988,-514.27312123,0.00041232,7]
[309825669,1704181837998,-273.32975873,0.00041232,7]
[309825670,1704181838007,-500.0,0.00041232,7]
[309825671,1704181838019,-502.8064103,0.00041232,7]
[309825672,1704181838027,-500.0,0.00041232,7]
[309825673,1704181838037,-513.86714749,0.00041232,7]
[309825674,1704181838046,-507.81855575,0.00041232,7]
[309825675,1704181838057,-500.0,0.00041232,7]
[309825676,1704181838066,-3406.83,0.00041232,7]
[309825677,1704181838077,-600.42,0.00041232,7]